fUSD/lending_fUSD_20240712
["ID","MTS","AMOUNT","RATE_DAILY","PERIOD"]
[331887461,1720817210371,431.44595972,0.00011199,2]
[331887468,1720817249851,305.78334679,0.00011199,2]
[331887470,1720817272014,500.0,0.00011199,2]
[331887471,1720817272362,620.0,0.00011199,2]
[331887472,1720817277200,500.0,0.00011199,2]
[331887473,1720817277741,572.0,0.00011199,2]
[331887475,1720817312274,269.79525909,0.00011199,2]
[331887480,1720817322037,488.42688505,0.00011199,2]
[331887481,1720817326380,210.03764409,0.00011199,2]
[331887482,1720817375572,3393.16408193,0.00011199,2]
[331887483,1720817402341,292.54926927,0.00011199,2]
[331887511,1720817431840,-349.70936002,0.00012048,2]
[331887513,1720817431851,-582.23596,0.00012048,2]
[331887514,1720817431902,-228.36521498,0.00012048,2]
[331887515,1720817431911,-964.52970432,0.00012109,2]
[331887516,1720817431960,-717.97287745,0.00012109,2]
[331887517,1720817431971,-330.0,0.00012209,2]
[331887518,1720817431981,-200.0,0.00012246,2]
[331887519,1720817431991,-12116.17746766,0.00012273,2]
[331887520,1720817432001,-1162.9,0.00012277,2]
[331887521,1720817432011,-23900.0,0.00012289,2]
[331887522,1720817432021,-955.85753929,0.00012302,2]
[331887523,1720817432031,-366.05734628,0.00012302,2]
[331887524,1720817432041,-253.69470968,0.00012302,2]
[331887525,1720817432052,-250.0,0.00012307,2]
[331887526,1720817432062,-761.3,0.0001232,2]
[331887527,1720817432072,-200.0,0.00012425,2]
[331887528,1720817432082,-150.99,0.00012425,2]
[331887529,1720817432093,-239.64,0.00012443,2]
[331887530,1720817432104,-171.81,0.00012443,2]
[331887531,1720817432114,-250.0,0.00012446,2]
[331887532,1720817432126,-150.0,0.00012466,2]
[331887533,1720817432135,-4229.37,0.00012542,2]
[331887534,1720817432144,-941.62,0.00012542,2]
[331887535,1720817432154,-321.64,0.00012559,2]
[331887536,1720817432163,-5362.37,0.00012559,2]
[331887537,1720817432174,-167.77,0.00012579,2]
[331887538,1720817432185,-400.0,0.0001281,2]
[331887539,1720817432194,-422.27,0.00012823,2]
[331887540,1720817432204,-600.0,0.00012981,2]
[331887541,1720817432214,-1441.6,0.00012981,2]
[331887542,1720817432226,-1250.0,0.00013,2]
[331887543,1720817432235,-276.42924477,0.00013128,2]
[331887545,1720817432244,-150.0,0.00013313,2]
[331887547,1720817432253,-10000.0,0.00013314,2]
[331887549,1720817432263,-262.38348334,0.00013472,2]
[331887550,1720817432273,-789.45308619,0.00013472,2]
[331887551,1720817432282,-891.5368913,0.00013472,2]
[331887552,1720817432293,-5875.227,0.00013474,2]
[331887554,1720817432302,-155.40245822,0.00013516,2]
[331887556,1720817432312,-519.15175191,0.00013516,2]
[331887558,1720817432321,-173.47,0.00013651,2]
[331887559,1720817432331,-250.0,0.00013699,2]
[331887560,1720817432342,-1000.0,0.000137,2]
[331887561,1720817432352,-150.0,0.00013716,2]
[331887562,1720817432365,-150.0,0.00013718,2]
[331887563,1720817432375,-5000.0,0.00013719,2]
[331887564,1720817432386,-2624.24139058,0.00013723,2]
[331887565,1720817432396,-150.0,0.00013736,2]
[331887566,1720817432406,-150.0,0.00013751,2]
[331887567,1720817432415,-156.06647836,0.00013759,2]
[331887568,1720817432425,-327.52608475,0.00013759,2]
[331887569,1720817432436,-150.0,0.00013766,2]
[331887570,1720817432445,-10068.86746297,0.0001379,2]
[331887571,1720817432454,-10068.86746295,0.0001379,2]
[331887572,1720817432463,-10068.86746295,0.0001379,2]
[331887573,1720817432471,-10068.86746295,0.0001379,2]
[331887574,1720817432480,-10068.86746295,0.0001379,2]
[331887575,1720817432490,-500.0,0.00013799,2]
[331887576,1720817432499,-500.0,0.00013799,2]
[331887577,1720817432509,-500.0,0.00013799,2]
[331887578,1720817432521,-500.0,0.00013799,2]
[331887579,1720817432532,-500.0,0.00013799,2]
[331887580,1720817432542,-500.0,0.00013799,2]
[331887581,1720817432553,-500.0,0.00013799,2]
[331887582,1720817432564,-500.0,0.00013799,2]
[331887583,1720817432575,-255.63531546,0.00013799,2]
[331887584,1720817432586,-500.0,0.00013799,2]
[331887585,1720817432596,-500.0,0.00013799,2]
[331887586,1720817432605,-500.0,0.00013799,2]
[331887587,1720817432615,-500.0,0.00013799,2]
[331887588,1720817432625,-500.0,0.00013799,2]
[331887589,1720817432635,-500.0,0.00013799,2]
[331887590,1720817432644,-500.0,0.00013799,2]
[331887591,1720817432653,-500.0,0.00013799,2]
[331887592,1720817432662,-500.0,0.00013799,2]
[331887593,1720817432672,-500.0,0.00013799,2]
[331887594,1720817432682,-343.34770885,0.00013799,2]
[331887595,1720817432692,-646.88,0.00013799,2]
[331887596,1720817432701,-500.0,0.00013799,2]
[331887597,1720817432712,-500.0,0.00013799,2]
[331887598,1720817432722,-500.0,0.00013799,2]
[331887599,1720817432733,-500.0,0.00013799,2]
[331887600,1720817432743,-500.0,0.00013799,2]
[331887601,1720817432753,-476.43960133,0.00013799,2]
[331887602,1720817432762,-247.66100128,0.00013799,2]
[331887603,1720817432773,-500.0,0.00013799,2]
[331887604,1720817432782,-500.0,0.00013799,2]
[331887605,1720817432791,-500.0,0.00013799,2]
[331887606,1720817432800,-500.0,0.00013799,2]
[331887607,1720817432810,-500.0,0.00013799,2]
[331887608,1720817432820,-500.0,0.00013799,2]
[331887609,1720817432830,-500.0,0.00013799,2]
[331887610,1720817432840,-500.0,0.00013799,2]
[331887611,1720817432850,-500.0,0.00013799,2]
[331887612,1720817432859,-500.0,0.00013799,2]
[331887613,1720817432869,-500.0,0.00013799,2]
[331887614,1720817432878,-500.0,0.00013799,2]
[331887615,1720817432887,-500.0,0.00013799,2]
[331887616,1720817432896,-500.0,0.00013799,2]
[331887617,1720817432905,-500.0,0.00013799,2]
[331887618,1720817432915,-692.8,0.00013799,2]
[331887619,1720817432924,-500.0,0.00013799,2]
[331887620,1720817432933,-507.68,0.00013799,2]
[331887621,1720817432943,-500.0,0.00013799,2]
[331887622,1720817432952,-500.0,0.00013799,2]
[331887623,1720817432962,-794.16,0.00013799,2]
[331887624,1720817432973,-512.02755315,0.00013799,2]
[331887625,1720817432982,-502.19,0.00013799,2]
[331887626,1720817432992,-500.0,0.00013799,2]
[331887627,1720817433002,-500.0,0.00013799,2]
[331887628,1720817433012,-500.0,0.00013799,2]
[331887629,1720817433021,-500.0,0.00013799,2]
[331887630,1720817433031,-500.0,0.00013799,2]
[331887631,1720817433041,-544.07,0.00013799,2]
[331887632,1720817433050,-500.0,0.00013799,2]
[331887633,1720817433059,-773.2,0.00013799,2]
[331887634,1720817433069,-500.0,0.00013799,2]
[331887635,1720817433078,-500.0,0.00013799,2]
[331887636,1720817433087,-634.59285419,0.00013799,2]
[331887637,1720817433096,-533.83,0.00013799,2]
[331887638,1720817433106,-500.0,0.00013799,2]
[331887639,1720817433115,-500.0,0.00013799,2]
[331887640,1720817433124,-500.0,0.00013799,2]
[331887641,1720817433135,-500.0,0.00013799,2]
[331887642,1720817433144,-643.97,0.00013799,2]
[331887643,1720817433153,-886.23,0.00013799,2]
[331887644,1720817433163,-597.64,0.00013799,2]
[331887645,1720817433172,-500.0,0.00013799,2]
[331887646,1720817433182,-500.0,0.00013799,2]
[331887647,1720817433192,-672.17,0.00013799,2]
[331887648,1720817433202,-529.87,0.00013799,2]
[331887649,1720817433211,-500.0,0.00013799,2]
[331887650,1720817433221,-500.0,0.00013799,2]
[331887651,1720817433231,-500.0,0.00013799,2]
[331887652,1720817433241,-500.0,0.00013799,2]
[331887653,1720817433251,-500.0,0.00013799,2]
[331887654,1720817433260,-500.0,0.00013799,2]
[331887655,1720817433269,-500.0,0.00013799,2]
[331887656,1720817433278,-773.08,0.00013799,2]
[331887657,1720817433288,-500.0,0.00013799,2]
[331887658,1720817433297,-500.0,0.00013799,2]
[331887659,1720817433307,-505.76,0.00013799,2]
[331887660,1720817433317,-500.0,0.00013799,2]
[331887661,1720817433326,-500.0,0.00013799,2]
[331887662,1720817433336,-500.0,0.00013799,2]
[331887663,1720817433345,-500.0,0.00013799,2]
[331887664,1720817433358,-500.0,0.00013799,2]
[331887665,1720817433367,-523.29,0.00013799,2]
[331887666,1720817433378,-500.0,0.00013799,2]
[331887667,1720817433387,-371.4532339,0.00013799,2]
[331887668,1720817433398,-598.67,0.00013799,2]
[331887669,1720817433407,-500.0,0.00013799,2]
[331887670,1720817433417,-500.0,0.00013799,2]
[331887671,1720817433427,-500.0,0.00013799,2]
[331887672,1720817433592,-725.7,0.00013799,2]
[331887673,1720817433601,-500.0,0.00013799,2]
[331887674,1720817433611,-500.0,0.00013799,2]
[331887675,1720817433621,-515.59,0.00013799,2]
[331887676,1720817433632,-500.0,0.00013799,2]
[331887677,1720817433642,-500.0,0.00013799,2]
[331887678,1720817433651,-500.0,0.00013799,2]
[331887679,1720817433661,-500.0,0.00013799,2]
[331887680,1720817433671,-641.00383729,0.00013799,2]
[331887681,1720817433680,-773.35,0.00013799,2]
[331887682,1720817433690,-500.0,0.00013799,2]
[331887683,1720817433700,-500.0,0.00013799,2]
[331887684,1720817433710,-500.0,0.00013799,2]
[331887685,1720817433720,-500.0,0.00013799,2]
[331887686,1720817433729,-500.0,0.00013799,2]
[331887687,1720817433739,-321.65598273,0.00013799,2]
[331887688,1720817433749,-500.0,0.00013799,2]
[331887689,1720817433758,-500.0,0.00013799,2]
[331887690,1720817433768,-531.04,0.00013799,2]
[331887691,1720817433778,-500.0,0.00013799,2]
[331887692,1720817433787,-500.0,0.00013799,2]
[331887693,1720817433796,-500.0,0.00013799,2]
[331887694,1720817433806,-500.0,0.00013799,2]
[331887695,1720817433815,-500.0,0.00013799,2]
[331887696,1720817433825,-500.0,0.00013799,2]
[331887697,1720817433834,-549.15,0.00013799,2]
[331887698,1720817433844,-500.0,0.00013799,2]
[331887699,1720817433854,-500.0,0.00013799,2]
[331887700,1720817433863,-500.0,0.00013799,2]
[331887701,1720817433872,-500.0,0.00013799,2]
[331887702,1720817433886,-500.0,0.00013799,2]
[331887703,1720817433895,-318.61737649,0.00013799,2]
[331887704,1720817433904,-500.0,0.00013799,2]
[331887705,1720817433914,-500.0,0.00013799,2]
[331887706,1720817433923,-500.0,0.00013799,2]
[331887707,1720817433932,-500.0,0.00013799,2]
[331887708,1720817433941,-500.0,0.00013799,2]
[331887709,1720817433951,-500.0,0.00013799,2]
[331887710,1720817433960,-500.0,0.00013799,2]
[331887711,1720817433970,-500.0,0.00013799,2]
[331887712,1720817433979,-500.0,0.00013799,2]
[331887713,1720817433989,-500.0,0.00013799,2]
[331887714,1720817433998,-500.0,0.00013799,2]
[331887715,1720817434008,-500.0,0.00013799,2]
[331887716,1720817434018,-846.79,0.00013799,2]
[331887717,1720817434027,-500.0,0.00013799,2]
[331887718,1720817434036,-500.0,0.00013799,2]
[331887719,1720817434046,-500.0,0.00013799,2]
[331887720,1720817434055,-500.0,0.00013799,2]
[331887721,1720817434064,-562.58,0.00013799,2]
[331887722,1720817434073,-500.0,0.00013799,2]
[331887723,1720817434082,-500.0,0.00013799,2]
[331887724,1720817434091,-500.0,0.00013799,2]
[331887725,1720817434100,-708.78,0.00013799,2]
[331887726,1720817434109,-500.0,0.00013799,2]
[331887727,1720817434118,-822.97,0.00013799,2]
[331887728,1720817434129,-500.0,0.00013799,2]
[331887729,1720817434140,-500.0,0.00013799,2]
[331887730,1720817434149,-500.0,0.00013799,2]
[331887731,1720817434158,-500.0,0.00013799,2]
[331887732,1720817434170,-504.53,0.00013799,2]
[331887733,1720817434179,-869.06337306,0.00013799,2]
[331887734,1720817434188,-500.0,0.00013799,2]
[331887735,1720817434197,-869.06337299,0.00013799,2]
[331887736,1720817434207,-500.0,0.00013799,2]
[331887737,1720817434216,-869.06337299,0.00013799,2]
[331887738,1720817434225,-668.53,0.00013799,2]
[331887739,1720817434234,-636.31,0.00013799,2]
[331887740,1720817434244,-869.06337299,0.00013799,2]
[331887741,1720817434253,-500.0,0.00013799,2]
[331887742,1720817434263,-512.52,0.00013799,2]
[331887743,1720817434272,-869.06337299,0.00013799,2]
[331887744,1720817434281,-500.0,0.00013799,2]
[331887745,1720817434291,-500.0,0.00013799,2]
[331887746,1720817434300,-500.0,0.00013799,2]
[331887747,1720817434310,-500.0,0.00013799,2]
[331887748,1720817434319,-500.0,0.00013799,2]
[331887749,1720817434328,-500.0,0.00013799,2]
[331887750,1720817434338,-500.0,0.00013799,2]
[331887751,1720817434348,-500.0,0.00013799,2]
[331887752,1720817434363,-500.0,0.00013799,2]
[331887753,1720817434372,-500.0,0.00013799,2]
[331887754,1720817434383,-220.15885721,0.00013799,2]
[331887755,1720817434394,-628.59,0.00013799,2]
[331887756,1720817434403,-500.0,0.00013799,2]
[331887757,1720817434412,-500.0,0.00013799,2]
[331887758,1720817434421,-500.0,0.00013799,2]
[331887759,1720817434432,-500.0,0.00013799,2]
[331887760,1720817434441,-500.0,0.00013799,2]
[331887761,1720817434450,-610.28655036,0.00013799,2]
[331887762,1720817434460,-1141.0,0.000138,2]
[331887763,1720817434469,-8639.7752,0.00013804,2]
[331887764,1720817434478,-10068.86746295,0.00013811,2]
[331887765,1720817434488,-869.06337299,0.00013811,2]
[331887766,1720817434496,-500.0,0.00013822,2]
[331887767,1720817434506,-500.0,0.00013822,2]
[331887768,1720817434515,-5803.1169734,0.00013822,2]
[331887769,1720817434524,-52228.0527606,0.00013823,2]
[331887770,1720817434533,-500.0,0.00013831,2]
[331887771,1720817434542,-500.0,0.00013831,2]
[331887772,1720817434551,-500.0,0.00013831,2]
[331887773,1720817434560,-500.0,0.00013831,2]
[331887774,1720817434570,-500.0,0.00013831,2]
[331887775,1720817434579,-500.0,0.00013831,2]
[331887776,1720817434588,-500.0,0.00013831,2]
[331887777,1720817434597,-753.33,0.00013831,2]
[331887778,1720817434606,-163.36,0.00013831,2]
[331887779,1720817434615,-500.0,0.00013831,2]
[331887780,1720817434624,-500.0,0.00013831,2]
[331887781,1720817434637,-500.0,0.00013831,2]
[331887782,1720817434646,-500.0,0.00013831,2]
[331887783,1720817434655,-776.04,0.00013831,2]
[331887784,1720817434668,-500.0,0.00013831,2]
[331887785,1720817434677,-500.0,0.00013831,2]
[331887786,1720817434686,-500.0,0.00013831,2]
[331887787,1720817434695,-500.0,0.00013831,2]
[331887788,1720817434705,-500.0,0.00013832,2]
[331887789,1720817434714,-500.0,0.00013832,2]
[331887790,1720817434723,-500.0,0.00013832,2]
[331887791,1720817434732,-500.0,0.00013832,2]
[331887792,1720817434742,-500.0,0.00013832,2]
[331887793,1720817434751,-500.0,0.00013832,2]
[331887794,1720817434760,-500.0,0.00013832,2]
[331887795,1720817434770,-525.49,0.00013832,2]
[331887796,1720817434779,-500.0,0.00013832,2]
[331887797,1720817434788,-500.0,0.00013832,2]
[331887798,1720817434797,-654.19,0.00013832,2]
[331887799,1720817434806,-635.44,0.00013832,2]
[331887800,1720817434816,-500.0,0.00013832,2]
[331887801,1720817434828,-500.0,0.00013832,2]
[331887802,1720817434839,-500.0,0.00013832,2]
[331887803,1720817434850,-500.0,0.00013832,2]
[331887804,1720817434860,-150.0,0.00013832,2]
[331887805,1720817434870,-500.0,0.00013832,2]
[331887806,1720817434882,-177.35376479,0.00013832,2]
[331887807,1720817434891,-500.0,0.00013832,2]
[331887808,1720817434901,-657.0,0.00013832,2]
[331887809,1720817434911,-500.0,0.00013832,2]
[331887810,1720817434920,-502.94,0.00013832,2]
[331887811,1720817434930,-500.0,0.00013832,2]
[331887812,1720817434939,-500.0,0.00013832,2]
[331887813,1720817434948,-500.0,0.00013832,2]
[331887814,1720817434958,-672.04,0.00013832,2]
[331887815,1720817434967,-579.85,0.00013832,2]
[331887816,1720817434978,-500.0,0.00013832,2]
[331887817,1720817434988,-434.21705469,0.00013832,2]
[331887818,1720817435000,-500.0,0.00013832,2]
[331887819,1720817435011,-500.0,0.00013832,2]
[331887820,1720817435021,-500.0,0.00013832,2]
[331887821,1720817435032,-500.0,0.00013832,2]
[331887822,1720817435043,-519.52285074,0.00013832,2]
[331887823,1720817435053,-669.63,0.00013832,2]
[331887824,1720817435064,-519.67293522,0.00013832,2]
[331887825,1720817435075,-635.88,0.00013832,2]
[331887826,1720817435086,-499.999999,0.00013832,2]
[331887827,1720817435097,-500.0,0.00013832,2]
[331887828,1720817435108,-500.0,0.00013832,2]
[331887829,1720817435118,-500.0,0.00013832,2]
[331887830,1720817435129,-500.0,0.00013832,2]
[331887831,1720817435138,-500.0,0.00013832,2]
[331887832,1720817435148,-500.0,0.00013832,2]
[331887833,1720817435157,-500.0,0.00013832,2]
[331887834,1720817435167,-639.31,0.00013832,2]
[331887835,1720817435176,-700.52,0.00013832,2]
[331887836,1720817435186,-826.2,0.00013832,2]
[331887837,1720817435195,-500.0,0.00013832,2]
[331887838,1720817435205,-651.54,0.00013832,2]
[331887839,1720817435215,-500.0,0.00013832,2]
[331887840,1720817435225,-381.11181865,0.00013832,2]
[331887841,1720817435235,-658.59,0.00013832,2]
[331887842,1720817435244,-500.0,0.00013832,2]
[331887843,1720817435254,-500.0,0.00013832,2]
[331887844,1720817435263,-500.0,0.00013832,2]
[331887845,1720817435272,-744.03,0.00013832,2]
[331887846,1720817435283,-676.29,0.00013832,2]
[331887847,1720817435293,-500.0,0.00013832,2]
[331887848,1720817435302,-500.0,0.00013832,2]
[331887849,1720817435311,-500.0,0.00013832,2]
[331887850,1720817435320,-500.0,0.00013832,2]
[331887851,1720817435330,-500.0,0.00013832,2]
[331887852,1720817435339,-500.0,0.00013832,2]
[331887853,1720817435348,-500.0,0.00013832,2]
[331887854,1720817435362,-500.0,0.00013832,2]
[331887855,1720817435372,-500.0,0.00013832,2]
[331887856,1720817435383,-500.0,0.00013832,2]
[331887857,1720817435393,-500.0,0.00013832,2]
[331887858,1720817435403,-500.0,0.00013832,2]
[331887859,1720817435413,-500.0,0.00013832,2]
[331887860,1720817435422,-500.0,0.00013832,2]
[331887861,1720817435433,-500.0,0.00013832,2]
[331887862,1720817435443,-557.41338034,0.00013832,2]
[331887863,1720817435452,-500.0,0.00013832,2]
[331887864,1720817435462,-500.0,0.00013832,2]
[331887865,1720817435471,-500.0,0.00013832,2]
[331887866,1720817435481,-500.0,0.00013832,2]
[331887867,1720817435491,-500.0,0.00013832,2]
[331887868,1720817435500,-540.48,0.00013832,2]
[331887869,1720817435510,-500.0,0.00013832,2]
[331887870,1720817435520,-500.0,0.00013832,2]
[331887871,1720817435531,-500.0,0.00013832,2]
[331887872,1720817435540,-500.0,0.00013832,2]
[331887873,1720817435549,-644.1,0.00013832,2]
[331887874,1720817435559,-500.0,0.00013832,2]
[331887875,1720817435569,-500.0,0.00013832,2]
[331887876,1720817435579,-500.0,0.00013832,2]
[331887877,1720817435588,-500.0,0.00013832,2]
[331887878,1720817435598,-500.0,0.00013832,2]
[331887879,1720817435608,-500.0,0.00013832,2]
[331887880,1720817435617,-500.0,0.00013832,2]
[331887881,1720817435628,-500.0,0.00013832,2]
[331887882,1720817435637,-854.78,0.00013832,2]
[331887883,1720817435646,-500.0,0.00013832,2]
[331887884,1720817435655,-500.0,0.00013832,2]
[331887885,1720817435665,-1210.82,0.00013832,2]
[331887886,1720817435674,-365.48582828,0.00013832,2]
[331887887,1720817435683,-500.0,0.00013832,2]
[331887888,1720817435692,-500.0,0.00013832,2]
[331887889,1720817435701,-500.0,0.00013832,2]
[331887890,1720817435710,-500.0,0.00013832,2]
[331887891,1720817435719,-890.99,0.00013832,2]
[331887892,1720817435729,-610.41,0.00013832,2]
[331887893,1720817435738,-850.32,0.00013832,2]
[331887894,1720817435747,-500.0,0.00013832,2]
[331887895,1720817435756,-500.0,0.00013832,2]
[331887896,1720817435765,-565.8,0.00013832,2]
[331887897,1720817435775,-500.0,0.00013832,2]
[331887898,1720817435784,-500.0,0.00013832,2]
[331887899,1720817435794,-500.0,0.00013832,2]
[331887900,1720817435803,-500.0,0.00013832,2]
[331887901,1720817435813,-500.0,0.00013832,2]
[331887902,1720817435823,-467.70102327,0.00013832,2]
[331887903,1720817435832,-553.25,0.00013832,2]
[331887904,1720817435841,-500.0,0.00013832,2]
[331887905,1720817435851,-500.0,0.00013832,2]
[331887906,1720817435860,-500.0,0.00013832,2]
[331887907,1720817435870,-500.0,0.00013832,2]
[331887908,1720817435881,-500.0,0.00013832,2]
[331887909,1720817435890,-500.0,0.00013832,2]
[331887910,1720817435899,-1045.57,0.00013832,2]
[331887911,1720817435908,-500.0,0.00013832,2]
[331887912,1720817435917,-1566.45,0.00013832,2]
[331887913,1720817435927,-500.0,0.00013832,2]
[331887914,1720817435936,-500.0,0.00013832,2]
[331887915,1720817435946,-806.16,0.00013832,2]
[331887916,1720817436070,-500.0,0.00013832,2]
[331887917,1720817436080,-701.21,0.00013832,2]
[331887918,1720817436088,-500.0,0.00013832,2]
[331887919,1720817436099,-500.0,0.00013832,2]
[331887920,1720817436109,-500.0,0.00013832,2]
[331887921,1720817436119,-500.0,0.00013832,2]
[331887922,1720817436132,-500.0,0.00013832,2]
[331887923,1720817436141,-500.0,0.00013832,2]
[331887924,1720817436151,-500.0,0.00013832,2]
[331887925,1720817436160,-500.0,0.00013832,2]
[331887926,1720817436170,-500.0,0.00013832,2]
[331887927,1720817436179,-587.67,0.00013832,2]
[331887928,1720817436188,-500.0,0.00013832,2]
[331887929,1720817436198,-606.48130635,0.00013832,2]
[331887930,1720817436207,-500.0,0.00013832,2]
[331887931,1720817436217,-500.0,0.00013832,2]
[331887932,1720817436225,-500.0,0.00013832,2]
[331887933,1720817436235,-500.0,0.00013832,2]
[331887934,1720817436244,-500.0,0.00013832,2]
[331887935,1720817436253,-500.0,0.00013832,2]
[331887936,1720817436262,-500.0,0.00013832,2]
[331887937,1720817436271,-500.0,0.00013832,2]
[331887938,1720817436280,-525.58,0.00013832,2]
[331887939,1720817436290,-547.63,0.00013832,2]
[331887940,1720817436299,-500.0,0.00013832,2]
[331887941,1720817436310,-500.0,0.00013832,2]
[331887942,1720817436319,-4270.02,0.00013832,2]
[331887943,1720817436330,-177.77460295,0.00013832,2]
[331887944,1720817436339,-511.16,0.00013832,2]
[331887945,1720817436350,-507.10152359,0.00013832,2]
[331887946,1720817436365,-806.36,0.00013832,2]
[331887947,1720817436375,-500.0,0.00013832,2]
[331887948,1720817436386,-500.0,0.00013832,2]
[331887949,1720817436396,-879.21,0.00013832,2]
[331887950,1720817436406,-500.0,0.00013832,2]
[331887951,1720817436416,-838.86,0.00013832,2]
[331887952,1720817436426,-500.0,0.00013832,2]
[331887953,1720817436438,-500.0,0.00013832,2]
[331887954,1720817436447,-500.0,0.00013832,2]
[331887955,1720817436457,-500.0,0.00013832,2]
[331887956,1720817436466,-100000.0,0.00013833,2]
[331887957,1720817436476,-10068.86746295,0.00013833,2]
[331887958,1720817436485,-869.06337299,0.00013833,2]
[331887959,1720817436494,-5803.1169734,0.00013838,2]
[331887960,1720817436504,-5803.1169734,0.00013839,2]
[331887961,1720817436514,-150.0,0.0001384,2]
[331887962,1720817436523,-46424.9357872,0.00013844,2]
[331887963,1720817436533,-5803.1169734,0.00013845,2]
[331887964,1720817436542,-419.54,0.00013848,2]
[331887965,1720817436552,-419.54,0.00013848,2]
[331887966,1720817436561,-419.21,0.00013848,2]
[331887967,1720817436571,-804.76,0.00013849,2]
[331887968,1720817436580,-500.0,0.00013849,2]
[331887969,1720817436590,-500.0,0.00013849,2]
[331887970,1720817436599,-563.83,0.00013849,2]
[331887971,1720817436608,-620.9,0.00013849,2]
[331887972,1720817436618,-760.99,0.00013849,2]
[331887973,1720817436627,-691.72,0.00013849,2]
[331887974,1720817436641,-500.0,0.00013849,2]
[331887975,1720817436651,-804.41,0.00013849,2]
[331887976,1720817436661,-752.33,0.00013849,2]
[331887977,1720817436671,-754.14,0.00013849,2]
[331887978,1720817436680,-500.0,0.00013849,2]
[331887979,1720817436689,-562.29,0.00013849,2]
[331887980,1720817436698,-500.0,0.00013849,2]
[331887981,1720817436708,-500.0,0.00013849,2]
[331887982,1720817436717,-500.0,0.00013854,2]
[331887983,1720817436726,-500.0,0.00013854,2]
[331887984,1720817436735,-500.0,0.00013854,2]
[331887985,1720817436744,-500.0,0.00013854,2]
[331887986,1720817436754,-500.0,0.00013854,2]
[331887987,1720817436763,-500.0,0.00013854,2]
[331887988,1720817436772,-500.0,0.00013854,2]
[331887989,1720817436781,-500.0,0.00013854,2]
[331887990,1720817436791,-500.0,0.00013854,2]
[331887991,1720817436800,-500.0,0.00013854,2]
[331887992,1720817436809,-500.0,0.00013854,2]
[331887993,1720817436818,-500.0,0.00013854,2]
[331887994,1720817436827,-500.0,0.00013854,2]
[331887995,1720817436836,-500.0,0.00013854,2]
[331887996,1720817436845,-500.0,0.00013854,2]
[331887997,1720817436854,-500.0,0.00013854,2]
[331887998,1720817436864,-500.0,0.00013854,2]
[331887999,1720817436873,-500.0,0.00013854,2]
[331888000,1720817436884,-500.0,0.00013854,2]
[331888001,1720817436893,-646.88,0.00013854,2]
[331888002,1720817436902,-500.0,0.00013854,2]
[331888003,1720817436911,-500.0,0.00013854,2]
[331888004,1720817436920,-500.0,0.00013854,2]
[331888005,1720817436930,-500.0,0.00013854,2]
[331888006,1720817436939,-343.53127141,0.00013854,2]